bitfinex-derivatives/quotes_BTCF0:USTF0_20250127
["timestamp","ask_amount","ask_price","bid_price","bid_amount"]
[1737985101190,0.4906,101180.0,101170.0,0.197719]
[1737985101389,0.63141155,101180.0,101170.0,0.197719]
[1737985101688,0.83785627,101180.0,101160.0,0.20373]
[1737985101887,0.3608,101170.0,101160.0,0.20373]
[1737985102283,0.2230998,101180.0,101170.0,0.197719]
[1737985102687,0.69141665,101180.0,101170.0,0.197719]
[1737985102892,0.8322282,101180.0,101160.0,0.199736]
[1737985103078,0.50161155,101170.0,101160.0,0.002]
[1737985103280,0.69933055,101170.0,101150.0,0.19922956]
[1737985103482,0.50161155,101160.0,101150.0,0.19922956]
[1737985103883,0.46840951,101160.0,101150.0,0.19922956]
[1737985104280,0.00014849,101170.0,101160.0,0.197739]
[1737985104492,0.00014849,101170.0,101160.0,0.201739]
[1737985104685,0.11249241,101170.0,101160.0,0.201739]
[1737985105195,0.47329241,101170.0,101160.0,0.197739]
[1737985106295,0.61410396,101170.0,101160.0,0.197739]
[1737985106792,0.61410396,101170.0,101160.0,0.199739]
[1737985107294,0.61410396,101170.0,101160.0,0.002]
[1737985107593,0.61410396,101170.0,101160.0,0.006]
[1737985108495,0.81181996,101170.0,101160.0,0.006]
[1737985109299,0.47329241,101170.0,101160.0,0.203735]
[1737985110195,0.61410396,101170.0,101160.0,0.203735]
[1737985110694,0.61410396,101170.0,101160.0,0.006]
[1737985111587,0.59729241,101170.0,101160.0,0.203735]
[1737985112495,0.73810396,101170.0,101160.0,0.203735]
[1737985113203,0.73810396,101170.0,101160.0,0.006]
[1737985113497,0.93581996,101170.0,101160.0,0.006]
[1737985113694,0.73810396,101170.0,101160.0,0.203736]
[1737985113885,0.59729241,101170.0,101160.0,0.203736]
[1737985114290,0.93581996,101170.0,101160.0,0.006]
[1737985114494,0.59729241,101170.0,101160.0,0.203736]
[1737985114791,0.47329241,101170.0,101160.0,0.203736]
[1737985114986,0.11249241,101170.0,101160.0,0.203736]
[1737985115192,0.11249241,101170.0,101160.0,0.70534755]
[1737985115392,0.00014849,101170.0,101160.0,0.694736]
[1737985115593,0.00014849,101170.0,101160.0,0.831036]
[1737985116396,0.00014849,101170.0,101160.0,0.700836]
[1737985116600,0.11120462,101170.0,101160.0,0.203736]
[1737985117096,0.47200462,101170.0,101160.0,0.006]
[1737985117295,0.81053217,101170.0,101160.0,0.006]
[1737985118102,0.47200462,101170.0,101160.0,0.203735]
[1737985119292,0.00014849,101170.0,101160.0,0.203735]
[1737985120098,0.00014849,101170.0,101160.0,0.564535]
[1737985121297,0.00014849,101170.0,101160.0,0.203735]
[1737985122094,0.00014849,101170.0,101160.0,0.564535]
[1737985122295,0.00014849,101170.0,101160.0,0.203735]
[1737985122602,0.61515279,101170.0,101160.0,0.203735]
[1737985122902,0.47434124,101170.0,101160.0,0.203735]
[1737985123298,0.61515279,101170.0,101160.0,0.203735]
[1737985123492,0.81286879,101170.0,101160.0,0.203735]
[1737985124409,0.61515279,101170.0,101160.0,0.203735]
[1737985125405,0.81286879,101170.0,101160.0,0.203735]
[1737985125594,0.81286879,101170.0,101160.0,0.006]
[1737985126202,0.81286879,101170.0,101140.0,0.18635566]
[1737985126203,0.197755,101150.0,101140.0,0.00951666]
[1737985126393,0.69937455,101150.0,101130.0,0.222498]
[1737985126598,0.74111155,101140.0,101130.0,0.197788]
[1737985126896,0.197794,101130.0,101110.0,0.335438]
[1737985127101,0.81210555,101130.0,101110.0,0.213638]
[1737985127298,0.728852,101130.0,101110.0,0.01582]
[1737985127503,0.728852,101130.0,101120.0,0.197814]
[1737985128501,0.728852,101130.0,101110.0,0.20720117]
[1737985128698,0.3608,101120.0,101110.0,0.197826]
[1737985129099,0.80975502,101120.0,101100.0,0.338388]
[1737985129404,0.3608,101110.0,101100.0,0.313668]
[1737985129797,0.47112647,101110.0,101100.0,0.32549867]
[1737985130303,0.47112647,101110.0,101100.0,0.30967867]
[1737985130505,0.11032647,101110.0,101100.0,0.30967867]
[1737985130800,0.3618,101120.0,101100.0,0.47263067]
[1737985131006,0.3618,101120.0,101110.0,0.197833]
[1737985131204,0.47630434,101120.0,101110.0,0.197833]
[1737985131408,0.002,101120.0,101110.0,0.563633]
[1737985131803,0.002,101120.0,101110.0,0.202833]
[1737985131999,0.002,101120.0,101110.0,0.563633]
[1737985132200,0.001,101120.0,101110.0,0.563633]
[1737985132503,0.3618,101120.0,101110.0,0.202833]
[1737985133011,0.3628,101120.0,101110.0,0.204833]
[1737985133597,0.002,101120.0,101110.0,0.565633]
[1737985133798,0.002,101120.0,101110.0,0.70644455]
[1737985134399,0.00014849,101130.0,101110.0,0.50861155]
[1737985134604,0.00014849,101130.0,101120.0,1.06292455]
[1737985134806,0.4828,101150.0,101140.0,0.197774]
[1737985135207,0.59334203,101150.0,101140.0,0.197774]
[1737985135711,0.11054203,101150.0,101140.0,0.197774]
[1737985135914,0.60194849,101160.0,101140.0,0.3608]
[1737985136212,0.24114849,101160.0,101150.0,0.197755]
[1737985136405,0.74276004,101160.0,101150.0,0.197755]
[1737985136905,0.8530405,101160.0,101150.0,0.197755]
[1737985137409,0.71222895,101160.0,101150.0,0.197755]
[1737985137708,0.00014849,101160.0,101150.0,0.69936655]
[1737985137907,0.00014849,101160.0,101150.0,0.910055]
[1737985138102,0.00014849,101160.0,101150.0,0.558555]
[1737985138309,0.24744325,101160.0,101150.0,0.197755]
[1737985138507,0.1066317,101160.0,101150.0,0.197755]
[1737985139611,0.1066317,101160.0,101150.0,0.200755]
[1737985140306,0.24744325,101160.0,101150.0,0.21264331]
[1737985140807,0.6661667,101160.0,101150.0,0.204755]
[1737985141014,0.5810317,101160.0,101150.0,0.204755]
[1737985141711,0.91957825,101160.0,101150.0,0.007]
[1737985142310,0.91957825,101160.0,101150.0,0.201754]
[1737985142311,0.5810317,101160.0,101150.0,0.201754]
[1737985142508,0.5800317,101160.0,101150.0,0.199754]
[1737985143410,0.5800317,101160.0,101150.0,0.198754]
[1737985144711,0.72084325,101160.0,101150.0,0.198754]
[1737985145411,0.5800317,101160.0,101150.0,0.197754]
[1737985145605,0.4674317,101160.0,101150.0,0.198754]
[1737985145811,0.00014849,101160.0,101150.0,0.3618]
[1737985146010,0.00014849,101160.0,101150.0,0.559554]
[1737985146216,0.00014849,101160.0,101150.0,0.70036555]
[1737985146820,0.00014849,101160.0,101150.0,0.69936555]
[1737985147014,0.00014849,101160.0,101150.0,0.559554]
[1737985147311,0.00014849,101160.0,101150.0,0.70336555]
[1737985147712,0.00014849,101160.0,101150.0,0.72807555]
[1737985148222,0.34388353,101180.0,101170.0,0.197716]
[1737985148621,0.44766919,101180.0,101170.0,0.197716]
[1737985148921,0.33506919,101180.0,101170.0,0.197716]
[1737985149114,0.4773,101200.0,101170.0,0.50161155]
[1737985149317,0.1165,101200.0,101190.0,0.197677]
[1737985149511,0.23085033,101200.0,101190.0,0.197677]
[1737985149724,0.23099882,101200.0,101190.0,0.197677]
[1737985149917,0.59179882,101200.0,101190.0,0.197677]
[1737985150114,0.93026737,101200.0,101180.0,0.19783349]
[1737985150321,0.14081155,101190.0,101180.0,0.19782949]
[1737985150622,0.61826004,101200.0,101180.0,0.19782949]
[1737985150918,0.80914469,101190.0,101180.0,0.00014849]
[1737985151119,0.197696,101180.0,101170.0,0.0079]
[1737985151418,0.9218739,101180.0,101170.0,0.0079]
[1737985151623,0.197716,101170.0,101160.0,0.197727]
[1737985151824,0.61531155,101170.0,101160.0,0.197727]
[1737985152016,0.7294779,101170.0,101160.0,0.197727]
[1737985152215,0.9271969,101170.0,101150.0,0.19789449]
[1737985152424,0.7294779,101170.0,101150.0,0.19789449]
[1737985153326,0.14081155,101160.0,101150.0,0.19789749]
[1737985153522,0.50161155,101160.0,101150.0,0.19789749]
[1737985153826,0.60570586,101160.0,101150.0,0.19789749]
[1737985154214,0.72180586,101160.0,101150.0,0.19789749]
[1737985154420,0.58099431,101160.0,101150.0,0.19789749]
[1737985154722,0.58099431,101160.0,101150.0,0.19889749]
[1737985155324,0.1161,101160.0,101150.0,0.55969749]
[1737985155727,0.1161,101160.0,101150.0,0.19889749]
[1737985155926,0.1161,101160.0,101150.0,0.55969749]
[1737985156726,0.3608,101170.0,101160.0,0.197735]
[1737985157434,0.72678005,101180.0,101170.0,0.197716]
[1737985157627,0.58544849,101180.0,101170.0,0.197716]
[1737985157930,0.69557226,101180.0,101170.0,0.197716]
[1737985158135,0.58544849,101180.0,101170.0,0.197716]
[1737985158323,0.11624849,101180.0,101170.0,0.558516]
[1737985158522,0.00014849,101180.0,101170.0,0.558516]
[1737985159337,0.00014849,101180.0,101170.0,0.69932755]
[1737985160030,0.00214849,101180.0,101170.0,0.69932755]
[1737985160427,0.00214849,101180.0,101170.0,0.70232755]
[1737985160730,0.00014849,101180.0,101170.0,0.70232755]
[1737985160926,0.00014849,101180.0,101170.0,0.70432755]
[1737985161330,0.00148332,101190.0,101170.0,0.50661155]
[1737985161624,0.00148332,101190.0,101180.0,0.668996]
[1737985161825,0.1015,101200.0,101180.0,0.61211155]
[1737985162032,0.1015,101200.0,101190.0,0.558477]
[1737985162233,0.10332131,101200.0,101190.0,0.558477]
[1737985162731,0.00014849,101210.0,101200.0,0.197657]
[1737985162927,0.60091836,101230.0,101220.0,0.197618]
[1737985163124,0.13151836,101230.0,101220.0,0.558418]
[1737985163631,0.13151836,101230.0,101220.0,2.058418]
[1737985164626,0.13851836,101230.0,101220.0,2.058418]
[1737985165024,0.14051836,101230.0,101220.0,2.058418]
[1737985165420,0.14051836,101230.0,101220.0,2.19922955]
[1737985165621,0.00014849,101240.0,101230.0,0.197599]
[1737985165834,0.00014849,101240.0,101230.0,0.69921055]
[1737985166633,0.00014849,101240.0,101230.0,0.558399]
[1737985166834,0.00914849,101240.0,101230.0,0.559399]
[1737985167421,0.00514849,101240.0,101230.0,0.69921055]
[1737985167826,0.00514849,101240.0,101230.0,0.558399]
[1737985168432,0.00114849,101240.0,101230.0,0.558399]
[1737985168934,0.00114849,101240.0,101230.0,0.566299]
[1737985169126,0.00114849,101240.0,101230.0,2.066299]
[1737985169326,0.00114849,101240.0,101230.0,0.566299]
[1737985169636,0.00114849,101240.0,101230.0,0.58087757]
[1737985171232,0.00114849,101240.0,101230.0,0.72168912]
[1737985171929,0.871925,101270.0,101260.0,0.19754]
[1737985172136,1.01273655,101270.0,101260.0,0.19754]
[1737985172437,1.11711323,101270.0,101260.0,0.19754]
[1737985173436,1.12611323,101270.0,101260.0,0.19854]
[1737985173933,1.12611323,101270.0,101260.0,0.001]
[1737985174836,0.92858823,101270.0,101260.0,0.001]
[1737985175038,1.12612823,101270.0,101260.0,0.001]
[1737985175238,1.12912823,101270.0,101250.0,0.00014849]
[1737985175438,0.69917555,101260.0,101240.0,0.19759]
[1737985175639,0.50161155,101250.0,101240.0,0.19759]
[1737985175940,0.8111903,101250.0,101230.0,0.230202]
[1737985176135,0.82031155,101240.0,101230.0,0.222302]
[1737985176441,0.6795,101240.0,101230.0,0.222302]
[1737985176638,0.93249726,101240.0,101230.0,0.222302]
[1737985176842,0.93249726,101240.0,101230.0,0.197612]
[1737985177141,1.13010726,101240.0,101220.0,0.19778349]
[1737985177439,0.50161155,101230.0,101220.0,0.19778349]
[1737985177837,0.60490679,101230.0,101220.0,0.19778349]
[1737985178637,0.46409524,101230.0,101220.0,0.19778349]
[1737985178843,0.46409524,101230.0,101220.0,0.33859504]
[1737985179049,0.10329524,101230.0,101220.0,0.69939504]
[1737985179343,0.3217,101240.0,101230.0,0.197618]
[1737985179544,0.2157,101240.0,101230.0,0.197618]
[1737985179946,0.2127,101240.0,101230.0,0.558418]
[1737985180242,0.36094849,101250.0,101240.0,0.197599]
[1737985180639,0.47100771,101250.0,101240.0,0.197599]
[1737985180840,0.47100771,101250.0,101240.0,1.697599]
[1737985181244,0.47100771,101250.0,101240.0,0.197599]
[1737985183042,0.47400771,101250.0,101240.0,0.197599]
[1737985183239,0.47500771,101250.0,101240.0,0.197599]
[1737985185535,0.7663515,101250.0,101240.0,0.197599]
[1737985185747,0.7663515,101250.0,101240.0,0.21243914]
[1737985185950,0.47500771,101250.0,101240.0,0.21243914]
[1737985186646,0.5687725,101250.0,101240.0,0.21243914]
[1737985187445,0.47500771,101250.0,101240.0,0.21243914]
[1737985187645,0.5687725,101250.0,101240.0,0.21243914]
[1737985188147,0.47500771,101250.0,101240.0,0.21243914]
[1737985188549,0.5687725,101250.0,101240.0,0.21243914]
[1737985189049,0.47500771,101250.0,101240.0,0.21243914]
[1737985189547,0.5687725,101250.0,101240.0,0.21243914]
[1737985189751,0.7663515,101250.0,101240.0,0.21243914]
[1737985189951,0.197605,101240.0,101230.0,0.197616]
[1737985190144,0.84166979,101240.0,101230.0,0.197616]
[1737985190343,0.94959951,101240.0,101230.0,0.197616]
[1737985190540,0.65822972,101240.0,101230.0,0.197616]
[1737985190751,0.29742972,101240.0,101230.0,0.197616]
[1737985190948,0.65822972,101240.0,101230.0,0.197616]
[1737985191153,0.29742972,101240.0,101230.0,0.197616]
[1737985191354,0.65822972,101240.0,101230.0,0.197616]
[1737985192248,0.29742972,101240.0,101230.0,0.198616]
[1737985192451,0.1895,101240.0,101230.0,0.198616]
[1737985192852,0.1895,101240.0,101230.0,0.21351265]
[1737985193352,0.65305243,101240.0,101230.0,0.21351265]
[1737985195343,0.1895,101240.0,101230.0,0.21351265]
[1737985195544,0.1895,101240.0,101230.0,0.30727744]
[1737985195748,0.1895,101240.0,101230.0,0.21351265]
[1737985195949,0.95080725,101240.0,101230.0,0.21351265]
[1737985197057,0.95180725,101240.0,101230.0,0.21251265]
[1737985197353,0.75420825,101240.0,101220.0,0.00014849]
[1737985197559,0.75038279,101230.0,101220.0,0.19778449]
[1737985197761,0.75038279,101230.0,101220.0,0.00014849]
[1737985197962,0.8574106,101230.0,101220.0,0.00014849]
[1737985198258,0.197638,101220.0,101210.0,0.19912683]
[1737985198458,0.65220279,101220.0,101210.0,0.19912683]
[1737985198648,0.75689417,101220.0,101210.0,0.19912683]
[1737985199062,0.55925617,101220.0,101210.0,0.19912683]
[1737985199363,0.46549138,101220.0,101210.0,0.19912683]
[1737985199557,0.10469138,101220.0,101210.0,0.29289162]
[1737985199749,0.46549138,101220.0,101210.0,0.19912683]
[1737985199950,0.10469138,101220.0,101210.0,0.19912683]
[1737985200157,0.46549138,101220.0,101210.0,0.19912683]
[1737985200362,0.55925617,101220.0,101210.0,0.19912683]
[1737985200560,0.55925617,101220.0,101210.0,0.20212683]
[1737985200759,0.56025617,101220.0,101210.0,1.70912683]
[1737985201060,0.3618,101220.0,101210.0,1.70912683]
[1737985201263,0.5618384,101220.0,101210.0,1.70912683]
[1737985201456,0.5618384,101220.0,101210.0,0.20912683]
[1737985201858,0.7594764,101220.0,101210.0,0.20912683]
[1737985202258,0.46807361,101220.0,101210.0,0.01]
[1737985202563,0.46807361,101220.0,101210.0,0.66221979]
[1737985202564,0.001,101220.0,101210.0,0.66221979]
[1737985202761,0.001,101220.0,101210.0,0.207655]
[1737985203550,0.113146,101220.0,101210.0,0.207655]
[1737985203756,0.76534879,101220.0,101210.0,0.01]
[1737985205163,0.56771079,101220.0,101210.0,0.207657]
[1737985205955,0.76534879,101220.0,101210.0,0.207657]
[1737985206150,0.56771079,101220.0,101210.0,0.207657]
[1737985206353,0.58179224,101220.0,101210.0,0.207657]
[1737985206955,0.473946,101220.0,101210.0,0.207657]
[1737985207365,0.56771079,101220.0,101210.0,0.207657]
[1737985207953,0.473946,101220.0,101210.0,0.207657]
[1737985208150,0.56771079,101220.0,101210.0,0.207657]
[1737985210157,0.56771079,101220.0,101210.0,0.01]
[1737985210158,0.85911358,101220.0,101210.0,0.01]
[1737985210362,0.76534879,101220.0,101210.0,0.01]
[1737985211455,0.76534879,101220.0,101210.0,0.207657]
[1737985212562,0.56771079,101220.0,101210.0,0.207657]
[1737985213667,0.473946,101220.0,101210.0,0.207657]
[1737985213864,0.473946,101220.0,101200.0,0.04956749]
[1737985214066,0.473946,101220.0,101210.0,0.197657]
[1737985214368,0.113146,101220.0,101210.0,0.29142179]
[1737985214565,0.113146,101220.0,101210.0,0.292057]
[1737985215157,0.113146,101220.0,101210.0,0.652857]
[1737985215353,0.113146,101220.0,101210.0,0.74662179]
[1737985215565,0.00014849,101230.0,101220.0,0.197638]
[1737985215760,0.00014849,101230.0,101220.0,0.65220279]
[1737985215965,0.11179568,101230.0,101220.0,0.65220279]
[1737985216168,0.11179568,101230.0,101220.0,0.558438]
[1737985216857,0.00014849,101230.0,101220.0,0.65220279]
[1737985217059,4.9e-07,101230.0,101220.0,0.74596758]
[1737985217261,0.5478,101260.0,101250.0,0.197579]
[1737985217462,0.64156479,101260.0,101250.0,0.197579]
[1737985217657,0.39387658,101260.0,101250.0,0.197579]
[1737985218266,0.30011179,101260.0,101250.0,0.197579]
[1737985218865,0.30711179,101260.0,101250.0,0.198579]
[1737985219569,0.40087658,101260.0,101250.0,0.198579]
[1737985219766,0.76467658,101260.0,101250.0,0.198579]
[1737985220071,0.67091179,101260.0,101250.0,0.198579]
[1737985220569,0.76467658,101260.0,101250.0,0.198579]
[1737985221071,0.67091179,101260.0,101250.0,0.198579]
[1737985221459,0.96223558,101260.0,101250.0,0.001]
[1737985221660,1.05600037,101260.0,101250.0,0.001]
[1737985222459,0.197579,101250.0,101240.0,0.00014849]
[1737985222667,0.74590858,101250.0,101240.0,0.00014849]
[1737985222865,0.85413643,101250.0,101240.0,0.00014849]
[1737985223776,0.85513643,101250.0,101240.0,0.00014849]
[1737985224075,0.76537164,101250.0,101240.0,0.00014849]
[1737985224368,0.85913643,101250.0,101240.0,0.00014849]
[1737985224576,0.197637,101220.0,101210.0,0.19913484]
[1737985224864,0.74596658,101220.0,101200.0,0.197665]
[1737985225070,0.45456479,101210.0,101200.0,0.197665]
[1737985225465,0.11136259,101210.0,101200.0,0.65222979]
[1737985225665,0.00014849,101220.0,101210.0,0.247071]
[1737985225972,0.00114849,101220.0,101210.0,0.253071]
[1737985226165,0.00114849,101220.0,101210.0,0.613871]
[1737985226366,0.00014849,101220.0,101210.0,0.250071]
[1737985227067,0.00014849,101220.0,101210.0,0.256071]
[1737985227272,0.00114849,101220.0,101210.0,0.256071]
[1737985229181,0.09491328,101220.0,101210.0,1.706657]
[1737985229365,0.09491328,101220.0,101210.0,0.206657]
[1737985229766,0.00114849,101220.0,101210.0,0.206657]
[1737985230769,0.00114849,101220.0,101210.0,0.30042179]
[1737985230970,0.00114849,101220.0,101210.0,0.31381343]
[1737985231171,0.00114849,101220.0,101210.0,0.59031343]
[1737985231468,0.00114849,101220.0,101210.0,0.95111343]
[1737985232775,0.3608,101240.0,101230.0,0.197618]
[1737985233075,0.46654311,101240.0,101230.0,0.197618]
[1737985233474,0.66414111,101240.0,101230.0,0.197618]
[1737985233878,0.46654311,101240.0,101230.0,0.197618]
[1737985235379,0.197618,101230.0,101220.0,0.19777349]
[1737985235672,0.3608,101240.0,101230.0,0.197618]
[1737985236074,0.46419066,101240.0,101230.0,0.197618]
[1737985237178,0.3608,101240.0,101230.0,0.197618]
[1737985238273,0.53653093,101250.0,101240.0,0.197598]
[1737985238675,0.74097768,101250.0,101240.0,0.197598]
[1737985238975,0.64721289,101250.0,101240.0,0.197598]
[1737985239175,0.74097768,101250.0,101240.0,0.197598]
[1737985239777,0.74597768,101250.0,101240.0,0.197598]
[1737985239980,0.65221289,101250.0,101240.0,0.197598]
[1737985240178,0.74597768,101250.0,101240.0,0.197598]
[1737985240882,0.94355668,101250.0,101240.0,0.197598]
[1737985241983,0.74597768,101250.0,101240.0,0.197598]
[1737985242983,0.65221289,101250.0,101240.0,0.19743955]
[1737985244484,0.11583045,101250.0,101240.0,0.65200434]
[1737985244783,0.00514849,101250.0,101240.0,0.65200434]
[1737985247087,0.00514849,101250.0,101240.0,0.29120434]
[1737985247287,0.00514849,101250.0,101240.0,0.19743955]
[1737985247986,0.36594849,101250.0,101240.0,0.19743955]
[1737985248184,0.39557811,101250.0,101240.0,0.19743955]
[1737985248588,0.03477811,101250.0,101240.0,0.19743955]
[1737985249182,0.39557811,101250.0,101240.0,0.19743955]
[1737985249383,0.50228554,101250.0,101240.0,0.19743955]
[1737985250091,0.79362933,101250.0,101240.0,0.19743955]
[1737985250288,0.197598,101240.0,101230.0,0.21083915]
[1737985250595,0.74036279,101240.0,101230.0,0.197616]
[1737985250798,0.65575134,101240.0,101220.0,0.00804849]
[1737985251000,0.4525,101230.0,101220.0,0.21880451]
[1737985251291,0.74388279,101230.0,101220.0,0.20568549]
[1737985251490,0.85686225,101230.0,101220.0,0.20568549]
[1737985251696,0.85686225,101230.0,101220.0,0.19778549]
[1737985252595,0.65924425,101230.0,101220.0,0.19778549]
[1737985252898,0.85686225,101230.0,101220.0,0.19778549]
[1737985254093,0.85686225,101230.0,101220.0,0.19978549]
[1737985254902,0.85686225,101230.0,101220.0,0.20278549]
[1737985255700,0.56547946,101230.0,101220.0,0.20278549]
[1737985256499,0.0882,101240.0,101230.0,0.197618]
[1737985256900,0.19929507,101240.0,101230.0,0.197618]
[1737985257199,0.0882,101240.0,101230.0,0.197618]
[1737985257509,0.449,101240.0,101230.0,0.197618]
[1737985257993,0.449,101240.0,101230.0,0.29138279]
[1737985258196,0.0882,101240.0,101230.0,0.197618]
[1737985260302,0.48157811,101250.0,101230.0,0.09376479]
[1737985260501,0.48157811,101250.0,101240.0,0.197598]
[1737985260699,0.22370424,101250.0,101240.0,0.197598]
[1737985260901,0.58450424,101250.0,101240.0,0.197598]
[1737985261102,0.67826903,101250.0,101220.0,0.41035349]
[1737985261300,0.65216479,101240.0,101230.0,0.197608]
[1737985261501,0.45456479,101240.0,101220.0,0.00014849]
[1737985261702,0.74458279,101230.0,101220.0,0.00014849]
[1737985262007,0.54696479,101230.0,101210.0,0.19913583]
[1737985262212,0.4478,101220.0,101210.0,0.19913583]
[1737985262401,0.54156479,101220.0,101210.0,0.19913583]
[1737985262604,0.94759057,101220.0,101180.0,1.910226]
[1737985262912,0.197721,101180.0,101160.0,0.197755]
[1737985263205,0.3608,101170.0,101160.0,0.238265]
[1737985263400,0.45456479,101170.0,101160.0,0.23841349]
[1737985263600,0.56305837,101170.0,101160.0,0.23841349]
[1737985263798,0.46929358,101170.0,101160.0,0.25076177]
[1737985264110,0.00014849,101180.0,101170.0,0.197735]
[1737985264303,0.36094849,101180.0,101170.0,0.197735]
[1737985264501,0.46831055,101180.0,101170.0,0.197735]
[1737985265209,0.55791055,101180.0,101170.0,0.197735]
[1737985265511,0.00014849,101180.0,101170.0,0.197735]
[1737985266010,0.00014849,101180.0,101170.0,0.558535]
[1737985266607,0.00014849,101180.0,101170.0,0.197735]
[1737985267012,0.76634182,101180.0,101170.0,0.197735]
[1737985267209,0.85404182,101180.0,101170.0,0.203735]
[1737985267408,0.85404182,101180.0,101170.0,0.006]
[1737985267713,0.197735,101170.0,101160.0,0.00014849]
[1737985267907,0.65229979,101170.0,101160.0,0.00014849]
[1737985268107,0.75631343,101170.0,101160.0,0.00014849]
[1737985270214,0.70178122,101170.0,101120.0,0.01214053]
[1737985270417,0.81536479,101130.0,101110.0,0.19933022]
[1737985270606,0.45456479,101120.0,101110.0,0.21155668]
[1737985271007,0.55973575,101120.0,101110.0,0.21155668]
[1737985271215,0.46597096,101120.0,101110.0,0.21155668]
[1737985272208,0.3608,101120.0,101110.0,0.30532147]
[1737985272413,0.3608,101120.0,101110.0,0.21155668]
[1737985273509,0.001,101120.0,101110.0,0.57635668]
[1737985273709,0.001,101120.0,101110.0,0.67012147]
[1737985273916,0.64046479,101150.0,101110.0,0.61043247]
[1737985274105,0.5467,101150.0,101120.0,0.63366479]
[1737985274306,0.64046479,101150.0,101140.0,0.19779]
[1737985274502,0.5467,101150.0,101140.0,0.19779]
[1737985274719,0.4543,101150.0,101140.0,0.19779]
[1737985274908,0.3608,101150.0,101140.0,0.19779]
[1737985275413,0.69948797,101150.0,101130.0,0.19794849]
[1737985275607,0.50171797,101140.0,101130.0,0.19794849]
[1737985275807,0.3608,101140.0,101130.0,0.19794849]
[1737985276008,0.10358361,101140.0,101130.0,0.19794849]
[1737985276406,0.24450158,101140.0,101130.0,0.19794849]
[1737985276606,0.60530158,101140.0,101130.0,0.19794849]
[1737985276802,0.3608,101150.0,101130.0,0.19794849]
[1737985277011,0.69948197,101150.0,101140.0,0.197783]
[1737985277209,0.80979219,101150.0,101140.0,0.197783]
[1737985277411,0.80979219,101150.0,101130.0,0.19794849]
[1737985277614,0.58651797,101140.0,101130.0,0.19794849]
[1737985277813,0.58651797,101140.0,101130.0,0.20993797]
[1737985278114,0.19503567,101140.0,101130.0,0.21593797]
[1737985278311,0.55583567,101140.0,101130.0,0.21593797]
[1737985279817,0.55483567,101140.0,101130.0,0.21293797]
[1737985280612,0.55583567,101140.0,101130.0,0.21493797]
[1737985281013,0.001,101140.0,101130.0,0.21493797]
[1737985281320,0.3608,101150.0,101130.0,0.21493797]
[1737985281321,0.1885321,101160.0,101130.0,0.51885594]
[1737985281518,0.1885321,101160.0,101150.0,0.197761]
[1737985281820,0.43411677,101160.0,101150.0,0.197761]
[1737985282010,0.2931988,101160.0,101150.0,0.197761]
[1737985282215,0.79491677,101160.0,101150.0,0.197761]
[1737985283319,0.59685007,101160.0,101150.0,0.197761]
[1737985283710,0.20130092,101160.0,101150.0,0.197761]
[1737985283912,0.0016321,101160.0,101150.0,0.197761]
[1737985284412,0.3608,101190.0,101150.0,2.30171797]
[1737985284613,0.27378302,101200.0,101190.0,0.19768]
[1737985284817,0.18048322,101200.0,101190.0,0.19768]
[1737985285018,0.28373367,101200.0,101190.0,0.19768]
[1737985285412,0.98311164,101200.0,101190.0,0.19768]
[1737985285607,0.98311164,101200.0,101180.0,0.19784449]
[1737985285809,0.14091797,101190.0,101180.0,0.19784749]
[1737985286118,0.24641987,101190.0,101180.0,0.19784749]
[1737985286314,0.1055019,101190.0,101180.0,0.19784749]
[1737985287109,0.4663019,101190.0,101180.0,0.19784749]
[1737985287315,0.1055019,101190.0,101180.0,0.19784749]
[1737985287713,0.4663019,101190.0,101180.0,0.19784749]
[1737985288110,0.60721987,101190.0,101180.0,0.00314849]
[1737985288413,0.74773987,101190.0,101160.0,0.19921863]
[1737985288612,0.50171797,101170.0,101160.0,0.19921863]
[1737985288814,0.3608,101170.0,101160.0,0.19921863]
[1737985289020,0.46954393,101170.0,101160.0,0.19921863]
[1737985289221,0.56184393,101170.0,101160.0,0.19921863]
[1737985289416,0.20104393,101170.0,101160.0,0.19921863]
[1737985289614,0.56184393,101170.0,101160.0,0.19921863]
[1737985290616,0.197738,101160.0,101150.0,0.00014849]
[1737985290821,0.197783,101140.0,101130.0,0.01176568]
[1737985291015,0.558583,101140.0,101120.0,0.197807]
[1737985291216,0.66643011,101140.0,101130.0,0.197797]
[1737985293019,0.66743011,101140.0,101130.0,0.197797]
[1737985293820,0.46964711,101140.0,101130.0,0.197797]
[1737985294225,0.66742411,101140.0,101130.0,0.197797]
[1737985294413,0.46964711,101140.0,101130.0,0.197797]
[1737985294617,0.10884711,101140.0,101130.0,0.197797]
[1737985294817,0.46864711,101140.0,101130.0,0.197797]
[1737985295320,0.19791749,101150.0,101120.0,0.56315195]
[1737985295517,0.69963546,101150.0,101130.0,0.197789]
[1737985295717,0.11290609,101140.0,101130.0,0.197789]
[1737985295913,0.81254155,101150.0,101130.0,0.197789]
[1737985296113,0.31069109,101140.0,101130.0,0.197789]
[1737985296323,0.67149109,101140.0,101130.0,0.197789]
[1737985296619,0.558585,101140.0,101130.0,0.197789]
[1737985296824,0.30192595,101140.0,101120.0,0.20978198]
[1737985297017,0.3608,101130.0,101120.0,0.20978198]
[1737985297523,0.4478,101130.0,101120.0,0.20978198]
[1737985298423,0.4478,101130.0,101120.0,0.21178198]
[1737985298625,0.5407,101130.0,101120.0,0.21178198]
[1737985299020,0.7385,101130.0,101120.0,0.21178198]
[1737985299221,1.0852683,101130.0,101120.0,0.00214849]
[1737985300422,0.94435033,101130.0,101120.0,0.00214849]
[1737985300816,0.74655033,101130.0,101120.0,0.00214849]
[1737985301026,0.74655033,101130.0,101120.0,0.19996649]
[1737985301221,0.38575033,101130.0,101120.0,0.19996649]
[1737985301418,0.58354933,101130.0,101120.0,0.19996649]
[1737985301613,0.94434933,101130.0,101120.0,0.19996649]
[1737985302827,1.0852673,101130.0,101120.0,0.00214849]
[1737985303525,0.197818,101120.0,101100.0,0.30979199]
[1737985303724,0.33875597,101110.0,101100.0,0.30979199]
[1737985303923,0.50171797,101110.0,101100.0,0.30979199]
[1737985304118,0.10377246,101110.0,101100.0,0.30979199]
[1737985304817,0.10377246,101110.0,101100.0,0.31179199]
[1737985305227,0.10377246,101110.0,101100.0,0.11194599]
[1737985305228,0.60549043,101110.0,101100.0,0.11194599]
[1737985305428,0.80432843,101110.0,101100.0,0.102]
[1737985307623,0.80432843,101110.0,101100.0,0.299853]
[1737985309130,0.80432843,101110.0,101100.0,0.102]